[Event "Early-Titled-Tuesday-Blitz-December-26-2023"]
[Site "Chess.com"]
[Date "2023.12.26"]
[Round "8"]
[White "NelsonLinda"]
[Black "FunnyDuck66"]
[Result "1-0"]
[WhiteElo "2616"]
[BlackElo "2473"]
[TimeControl "180+1"]
[EndTime "9:30:22 PST"]
[Termination "NelsonLinda won by resignation"]

1. b3 {[%clk 0:03:00.9]} 1... d5 {[%clk 0:02:58.1]} 2. Bb2 {[%clk 0:03:01.6]}
2... Nf6 {[%clk 0:02:58.5]} 3. Nf3 {[%clk 0:02:56.8]} 3... c6 {[%clk 0:02:57.8]}
4. g3 {[%clk 0:02:49.5]} 4... Bg4 {[%clk 0:02:56.6]} 5. Bg2 {[%clk 0:02:49.9]}
5... Nbd7 {[%clk 0:02:52.6]} 6. d4 {[%clk 0:02:49.2]} 6... e6 {[%clk 0:02:50.7]}
7. O-O {[%clk 0:02:49.4]} 7... Be7 {[%clk 0:02:45.5]} 8. Nbd2 {[%clk 0:02:46.2]}
8... O-O {[%clk 0:02:43.9]} 9. Qe1 {[%clk 0:02:20.8]} 9... Bf5 {[%clk
0:02:30.7]} 10. Rc1 {[%clk 0:02:19.4]} 10... a5 {[%clk 0:02:29.6]} 11. a3 {[%clk
0:02:16.9]} 11... a4 {[%clk 0:02:25.7]} 12. b4 {[%clk 0:02:17.1]} 12... Ne4
{[%clk 0:02:19]} 13. c4 {[%clk 0:02:03.8]} 13... b5 {[%clk 0:02:03.8]} 14. c5
{[%clk 0:01:57.7]} 14... Nxd2 {[%clk 0:01:59.2]} 15. Nxd2 {[%clk 0:01:57.7]}
15... Bg6 {[%clk 0:01:52.9]} 16. f3 {[%clk 0:01:51.2]} 16... Bg5 {[%clk
0:01:45.8]} 17. e4 {[%clk 0:01:44.4]} 17... dxe4 {[%clk 0:01:09.3]} 18. fxe4
{[%clk 0:01:45.3]} 18... Nf6 {[%clk 0:01:09]} 19. Rf4 {[%clk 0:00:40.5]} 19...
Bxf4 {[%clk 0:00:56.7]} 20. gxf4 {[%clk 0:00:41.4]} 20... h6 {[%clk 0:00:42.7]}
21. Qf2 {[%clk 0:00:33.8]} 21... Rc8 {[%clk 0:00:36.7]} 22. Re1 {[%clk 0:00:31]}
22... Re8 {[%clk 0:00:13.7]} 23. Nf1 {[%clk 0:00:29.6]} 23... Ng4 {[%clk
0:00:12.4]} 24. Qg3 {[%clk 0:00:27.4]} 24... f5 {[%clk 0:00:12.7]} 25. h3 {[%clk
0:00:25.6]} 25... Nf6 {[%clk 0:00:12.6]} 26. Qxg6 {[%clk 0:00:25.7]} 26... Qd7
{[%clk 0:00:08]} 27. d5 {[%clk 0:00:20]} 27... Qf7 {[%clk 0:00:05.2]} 28. Qxf7+
{[%clk 0:00:18.4]} 28... Kxf7 {[%clk 0:00:05.6]} 29. d6 {[%clk 0:00:18.6]} 29...
fxe4 {[%clk 0:00:04.6]} 30. Ng3 {[%clk 0:00:15.3]} 30... Rcd8 {[%clk 0:00:02.1]}
31. Bxe4 {[%clk 0:00:14.5]} 31... Nd5 {[%clk 0:00:02.5]} 32. f5 {[%clk
0:00:10.1]} 32... exf5 {[%clk 0:00:01.2]} 33. Bxd5+ {[%clk 0:00:07]} 33... cxd5
{[%clk 0:00:02.1]} 34. Rxe8 {[%clk 0:00:07]} 34... Kxe8 {[%clk 0:00:03]} 35.
Nxf5 {[%clk 0:00:07.4]} 35... Kd7 {[%clk 0:00:03.5]} 36. Bxg7 {[%clk 0:00:06.5]}
36... Rg8 {[%clk 0:00:02.1]} 37. Kf2 {[%clk 0:00:05.2]} 37... d4 {[%clk
0:00:02.6]} 38. Bxd4 {[%clk 0:00:04.9]} 38... Rf8 {[%clk 0:00:03.1]} 39. Ke2
{[%clk 0:00:04.4]} 39... Rxf5 {[%clk 0:00:03.8]} 40. Be3 {[%clk 0:00:04.6]}
40... Rh5 {[%clk 0:00:04.1]} 41. Kd3 {[%clk 0:00:04.5]} 41... Rxh3 {[%clk
0:00:04.1]} 42. Ke4 {[%clk 0:00:05]} 42... Kc6 {[%clk 0:00:03.6]} 43. Bf4 {[%clk
0:00:04.7]} 43... Rxa3 {[%clk 0:00:03.3]} 44. Ke5 {[%clk 0:00:05.2]} 44... Ra1
{[%clk 0:00:01.5]} 45. Ke6 {[%clk 0:00:05.9]} 45... Re1+ {[%clk 0:00:02.4]} 46.
Be5 {[%clk 0:00:06.5]} 46... Rxe5+ {[%clk 0:00:01.6]} 47. Kxe5 {[%clk
0:00:06.5]} 47... a3 {[%clk 0:00:02.5]} 48. Ke6 {[%clk 0:00:07.1]} 48... a2
{[%clk 0:00:03.4]} 49. d7 {[%clk 0:00:07.8]} 49... a1=Q {[%clk 0:00:04.3]} 50.
d8=Q {[%clk 0:00:08.4]} 50... Qe1+ {[%clk 0:00:05.2]} 51. Kf7 {[%clk 0:00:08.6]}
51... Qf2+ {[%clk 0:00:05.8]} 52. Kg6 {[%clk 0:00:07.1]} 52... Qg3+ {[%clk
0:00:06.3]} 53. Kxh6 {[%clk 0:00:06.6]} 53... Qh3+ {[%clk 0:00:06.9]} 54. Kg6
{[%clk 0:00:06.5]} 54... Qg3+ {[%clk 0:00:07.2]} 55. Kf7 {[%clk 0:00:06.3]}
55... Qb3+ {[%clk 0:00:05.5]} 56. Ke8 {[%clk 0:00:04.3]} 56... Qg8+ {[%clk
0:00:05]} 57. Ke7 {[%clk 0:00:04.8]} 57... Qg7+ {[%clk 0:00:05.7]} 58. Ke6
{[%clk 0:00:03.8]} 58... Qg4+ {[%clk 0:00:05.9]} 59. Ke5 {[%clk 0:00:03.4]}
59... Qg3+ {[%clk 0:00:05]} 60. Ke4 {[%clk 0:00:03.3]} 60... Qg2+ {[%clk
0:00:04.7]} 61. Kf5 {[%clk 0:00:03.7]} 61... Qf3+ {[%clk 0:00:04.4]} 62. Kg6
{[%clk 0:00:04.1]} 62... Qg3+ {[%clk 0:00:04.8]} 63. Qg5 {[%clk 0:00:04.2]}
63... Qd3+ {[%clk 0:00:04.7]} 64. Qf5 {[%clk 0:00:04.3]} 64... Qg3+ {[%clk
0:00:03.8]} 65. Kf7 {[%clk 0:00:04.1]} 65... Qb3+ {[%clk 0:00:03.4]} 66. Qe6+
{[%clk 0:00:04.1]} 66... Qxe6+ {[%clk 0:00:03.9]} 67. Kxe6 {[%clk 0:00:05]}
67... Kc7 {[%clk 0:00:03.4]} 68. Kd5 {[%clk 0:00:05]} 1-0

[Event "Early-Titled-Tuesday-Blitz-December-26-2023"]
[Site "Chess.com"]
[Date "2023.12.26"]
[Round "8"]
[White "ahkashefi2800"]
[Black "Witik"]
[Result "1-0"]
[WhiteElo "2593"]
[BlackElo "2724"]
[TimeControl "180+1"]
[EndTime "9:30:26 PST"]
[Termination "ahkashefi2800 won by resignation"]

1. d4 {[%clk 0:02:59.1]} 1... Nf6 {[%clk 0:02:59.7]} 2. Nf3 {[%clk 0:02:58.5]}
2... e6 {[%clk 0:03:00]} 3. g3 {[%clk 0:02:57.1]} 3... b5 {[%clk 0:02:57.2]} 4.
Bg2 {[%clk 0:02:56.2]} 4... Bb7 {[%clk 0:02:57.9]} 5. Bg5 {[%clk 0:02:51.1]}
5... d6 {[%clk 0:02:41.4]} 6. c3 {[%clk 0:02:46.1]} 6... a6 {[%clk 0:02:39.8]}
7. Nbd2 {[%clk 0:02:45.3]} 7... Nbd7 {[%clk 0:02:40.2]} 8. O-O {[%clk
0:02:44.5]} 8... h6 {[%clk 0:02:30]} 9. Bxf6 {[%clk 0:02:44]} 9... Nxf6 {[%clk
0:02:30.9]} 10. Re1 {[%clk 0:02:43.2]} 10... Be7 {[%clk 0:02:19.2]} 11. a4
{[%clk 0:02:37.4]} 11... O-O {[%clk 0:02:18.3]} 12. Qb3 {[%clk 0:02:35.2]} 12...
Rb8 {[%clk 0:02:11.4]} 13. axb5 {[%clk 0:02:34]} 13... axb5 {[%clk 0:02:11.6]}
14. Ra7 {[%clk 0:02:32.3]} 14... c5 {[%clk 0:02:08.9]} 15. Rea1 {[%clk
0:02:29.4]} 15... Qb6 {[%clk 0:02:06.7]} 16. e3 {[%clk 0:02:23.7]} 16... Ra8
{[%clk 0:01:49.7]} 17. Rxa8 {[%clk 0:02:05.8]} 17... Rxa8 {[%clk 0:01:50.6]} 18.
Rxa8+ {[%clk 0:02:05.4]} 18... Bxa8 {[%clk 0:01:51.5]} 19. Qa2 {[%clk
0:02:04.2]} 19... Bd5 {[%clk 0:01:45.5]} 20. Qa3 {[%clk 0:01:58.3]} 20... Qb7
{[%clk 0:01:38.4]} 21. Ne1 {[%clk 0:01:54.6]} 21... Bxg2 {[%clk 0:01:36.5]} 22.
Nxg2 {[%clk 0:01:54]} 22... Nd7 {[%clk 0:01:24.4]} 23. h4 {[%clk 0:01:51.2]}
23... e5 {[%clk 0:01:13.4]} 24. Qa5 {[%clk 0:01:40]} 24... Nf8 {[%clk 0:00:56]}
25. Qa2 {[%clk 0:01:31.4]} 25... Ne6 {[%clk 0:00:53.4]} 26. dxe5 {[%clk
0:01:31]} 26... dxe5 {[%clk 0:00:53.5]} 27. Qb1 {[%clk 0:01:30.9]} 27... c4
{[%clk 0:00:48]} 28. Qe4 {[%clk 0:01:28.6]} 28... Qd7 {[%clk 0:00:48.4]} 29. Nf3
{[%clk 0:01:22.4]} 29... f6 {[%clk 0:00:45.4]} 30. Nge1 {[%clk 0:01:19.7]} 30...
Nc5 {[%clk 0:00:45.4]} 31. Qc2 {[%clk 0:01:16.7]} 31... Qg4 {[%clk 0:00:30.6]}
32. Qe2 {[%clk 0:00:59.3]} 32... Nd3 {[%clk 0:00:21.1]} 33. Kf1 {[%clk
0:00:20.1]} 33... Qh3+ {[%clk 0:00:11.6]} 34. Kg1 {[%clk 0:00:20.5]} 34... Qg4
{[%clk 0:00:12.3]} 35. Kf1 {[%clk 0:00:20.8]} 35... h5 {[%clk 0:00:09.4]} 36. b4
{[%clk 0:00:08.1]} 36... Qh3+ {[%clk 0:00:08.9]} 37. Kg1 {[%clk 0:00:08.2]}
37... Qg4 {[%clk 0:00:09.8]} 38. Kf1 {[%clk 0:00:06.3]} 38... Bf8 {[%clk
0:00:09]} 39. Ng1 {[%clk 0:00:04.7]} 39... Qf5 {[%clk 0:00:05.2]} 40. e4 {[%clk
0:00:05.1]} 40... Qd7 {[%clk 0:00:05.3]} 41. Qxh5 {[%clk 0:00:05.3]} 41... Nc1
{[%clk 0:00:02.5]} 42. Qf3 {[%clk 0:00:04.3]} 42... Nb3 {[%clk 0:00:02.6]} 43.
Qe3 {[%clk 0:00:04]} 43... Nd2+ {[%clk 0:00:02.7]} 44. Kg2 {[%clk 0:00:04.4]}
44... Nb3 {[%clk 0:00:03.2]} 45. Nef3 {[%clk 0:00:04.4]} 45... Qc6 {[%clk
0:00:03.7]} 46. Ne2 {[%clk 0:00:03.8]} 46... Bd6 {[%clk 0:00:03.9]} 47. h5
{[%clk 0:00:03.7]} 47... Bf8 {[%clk 0:00:04.2]} 48. Nh4 {[%clk 0:00:03.9]} 48...
Na1 {[%clk 0:00:03.4]} 49. f3 {[%clk 0:00:02.3]} 49... Nc2 {[%clk 0:00:03.5]}
50. Qd2 {[%clk 0:00:02.6]} 50... Na3 {[%clk 0:00:02.4]} 51. Nf5 {[%clk 0:00:02]}
51... Qe8 {[%clk 0:00:02.2]} 52. Qd5+ {[%clk 0:00:02.3]} 52... Qf7 {[%clk
0:00:02.6]} 53. Qxf7+ {[%clk 0:00:02.1]} 53... Kxf7 {[%clk 0:00:03.5]} 54. g4
{[%clk 0:00:02.8]} 54... Nb1 {[%clk 0:00:03.5]} 55. Kf2 {[%clk 0:00:03.1]} 55...
Ke6 {[%clk 0:00:03.4]} 56. Ke1 {[%clk 0:00:03]} 56... Na3 {[%clk 0:00:02.5]} 57.
Kd1 {[%clk 0:00:03.4]} 57... Kf7 {[%clk 0:00:02.8]} 58. Kc1 {[%clk 0:00:03.7]}
58... g6 {[%clk 0:00:03.3]} 59. hxg6+ {[%clk 0:00:04.3]} 59... Kxg6 {[%clk
0:00:04.2]} 60. Kb2 {[%clk 0:00:04.9]} 60... Kg5 {[%clk 0:00:02.1]} 61. Kxa3
{[%clk 0:00:04.9]} 61... Kg6 {[%clk 0:00:01.5]} 62. Kb2 {[%clk 0:00:05.3]} 62...
Kg5 {[%clk 0:00:01.7]} 63. Kc2 {[%clk 0:00:05.8]} 63... Kg6 {[%clk 0:00:02.3]}
64. Kd2 {[%clk 0:00:06.3]} 64... Kg5 {[%clk 0:00:03.2]} 65. Ke1 {[%clk
0:00:06.7]} 65... Bxb4 {[%clk 0:00:03.6]} 66. cxb4 {[%clk 0:00:06.7]} 1-0

[Event "Early-Titled-Tuesday-Blitz-December-26-2023"]
[Site "Chess.com"]
[Date "2023.12.26"]
[Round "8"]
[White "bubeliang"]
[Black "Elsa167"]
[Result "0-1"]
[WhiteElo "2773"]
[BlackElo "2982"]
[TimeControl "180+1"]
[EndTime "9:30:28 PST"]
[Termination "Elsa167 won by resignation"]

1. e4 {[%clk 0:02:55.9]} 1... c5 {[%clk 0:02:58.2]} 2. c3 {[%clk 0:02:54.3]}
2... e5 {[%clk 0:02:56.5]} 3. Nf3 {[%clk 0:02:53.7]} 3... Nc6 {[%clk 0:02:57]}
4. Bc4 {[%clk 0:02:53.5]} 4... Nf6 {[%clk 0:02:54.6]} 5. Ng5 {[%clk 0:02:53.3]}
5... d5 {[%clk 0:02:52]} 6. exd5 {[%clk 0:02:54.2]} 6... Nxd5 {[%clk 0:02:52.5]}
7. Qh5 {[%clk 0:02:54.3]} 7... g6 {[%clk 0:02:51]} 8. Qf3 {[%clk 0:02:54.3]}
8... Qxg5 {[%clk 0:02:49.3]} 9. Bxd5 {[%clk 0:02:54.6]} 9... Nd8 {[%clk
0:02:47.6]} 10. O-O {[%clk 0:02:54.7]} 10... Qe7 {[%clk 0:02:44.7]} 11. d4
{[%clk 0:02:54.1]} 11... cxd4 {[%clk 0:02:39.2]} 12. cxd4 {[%clk 0:02:53.2]}
12... exd4 {[%clk 0:02:40.1]} 13. b3 {[%clk 0:02:45.1]} 13... Be6 {[%clk
0:02:10.8]} 14. a4 {[%clk 0:02:10.7]} 14... Bxd5 {[%clk 0:01:53.9]} 15. Qxd5
{[%clk 0:02:11.6]} 15... Ne6 {[%clk 0:01:26.7]} 16. Nd2 {[%clk 0:02:04.5]} 16...
Qd7 {[%clk 0:01:24.9]} 17. Qf3 {[%clk 0:01:57.4]} 17... Be7 {[%clk 0:01:19]} 18.
Nc4 {[%clk 0:01:54.2]} 18... Qc6 {[%clk 0:01:01.6]} 19. Qh3 {[%clk 0:01:36.2]}
19... O-O {[%clk 0:01:00.1]} 20. Bb2 {[%clk 0:01:33.1]} 20... Rad8 {[%clk
0:00:57.9]} 21. Rad1 {[%clk 0:01:31.7]} 21... Bf6 {[%clk 0:00:53.1]} 22. Rfe1
{[%clk 0:01:27.9]} 22... Rfe8 {[%clk 0:00:52.3]} 23. Qg3 {[%clk 0:01:20.3]}
23... Qd5 {[%clk 0:00:49.4]} 24. h3 {[%clk 0:01:15.6]} 24... Bg7 {[%clk
0:00:49.4]} 25. Rd2 {[%clk 0:01:06.4]} 25... a6 {[%clk 0:00:46]} 26. Red1 {[%clk
0:01:04.5]} 26... b5 {[%clk 0:00:41.5]} 27. axb5 {[%clk 0:00:58.6]} 27... axb5
{[%clk 0:00:42.4]} 28. Na3 {[%clk 0:00:58.5]} 28... Bh6 {[%clk 0:00:33.8]} 29.
Rd3 {[%clk 0:00:54.9]} 29... Nf4 {[%clk 0:00:33.9]} 30. Rxd4 {[%clk 0:00:46.2]}
30... Qxd4 {[%clk 0:00:27.6]} 31. Rxd4 {[%clk 0:00:38.7]} 31... Ne2+ {[%clk
0:00:27.9]} 32. Kh2 {[%clk 0:00:39.1]} 32... Nxg3 {[%clk 0:00:28.8]} 33. Kxg3
{[%clk 0:00:26.7]} 33... Rxd4 {[%clk 0:00:19.6]} 34. Bxd4 {[%clk 0:00:27.6]}
34... Re4 {[%clk 0:00:14.7]} 35. Nxb5 {[%clk 0:00:25.2]} 35... Bg7 {[%clk
0:00:13.2]} 36. Bxg7 {[%clk 0:00:19.1]} 36... Kxg7 {[%clk 0:00:14.1]} 37. Kh2
{[%clk 0:00:14.7]} 37... Rb4 {[%clk 0:00:14.1]} 38. Nd6 {[%clk 0:00:13.1]} 38...
Rxb3 {[%clk 0:00:13.6]} 39. Ne4 {[%clk 0:00:12.6]} 39... f5 {[%clk 0:00:13.2]}
40. Ng5 {[%clk 0:00:11.7]} 40... h6 {[%clk 0:00:11.3]} 41. Nf3 {[%clk
0:00:12.1]} 41... Kf6 {[%clk 0:00:11.8]} 42. h4 {[%clk 0:00:12.6]} 42... Ra3
{[%clk 0:00:10.2]} 43. Nd4 {[%clk 0:00:09.9]} 43... Ra2 {[%clk 0:00:07.4]} 44.
Kg1 {[%clk 0:00:05.8]} 44... Ke5 {[%clk 0:00:06.7]} 45. Nc6+ {[%clk 0:00:06.4]}
45... Kf4 {[%clk 0:00:06.5]} 46. g3+ {[%clk 0:00:04.6]} 46... Kg4 {[%clk
0:00:05.5]} 47. Ne5+ {[%clk 0:00:03.7]} 47... Kh3 {[%clk 0:00:05.1]} 48. Kf1
{[%clk 0:00:02.8]} 48... Ra6 {[%clk 0:00:04]} 49. Nd3 {[%clk 0:00:02.2]} 49...
Kh2 {[%clk 0:00:03.7]} 50. Nf4 {[%clk 0:00:01.7]} 50... g5 {[%clk 0:00:04.2]}
51. hxg5 {[%clk 0:00:02.6]} 51... hxg5 {[%clk 0:00:05.1]} 52. Nd5 {[%clk
0:00:03.3]} 52... Ra1+ {[%clk 0:00:04.2]} 53. Ke2 {[%clk 0:00:03.8]} 53... Kg1
{[%clk 0:00:03.5]} 54. Nc3 {[%clk 0:00:02.3]} 54... Rc1 {[%clk 0:00:02.7]} 55.
Nd5 {[%clk 0:00:01.7]} 55... Rc2+ {[%clk 0:00:02.9]} 56. Ke3 {[%clk 0:00:01.5]}
56... Rxf2 {[%clk 0:00:03.1]} 57. Ne7 {[%clk 0:00:01.9]} 57... Kg2 {[%clk
0:00:03.4]} 58. Nd5 {[%clk 0:00:01.4]} 58... Kxg3 {[%clk 0:00:03]} 59. Nf6
{[%clk 0:00:01.5]} 59... f4+ {[%clk 0:00:03.4]} 60. Ke4 {[%clk 0:00:01.5]} 60...
Re2+ {[%clk 0:00:04]} 61. Kd3 {[%clk 0:00:02]} 61... Re6 {[%clk 0:00:03.9]} 62.
Nh5+ {[%clk 0:00:01.3]} 62... Kf3 {[%clk 0:00:03.9]} 63. Ng7 {[%clk 0:00:02.2]}
63... Rd6+ {[%clk 0:00:04.1]} 64. Kc2 {[%clk 0:00:02.4]} 64... Ke2 {[%clk
0:00:03.6]} 65. Nf5 {[%clk 0:00:02.6]} 65... Rd7 {[%clk 0:00:03.8]} 66. Nh6
{[%clk 0:00:02.4]} 66... f3 {[%clk 0:00:03.7]} 67. Ng4 {[%clk 0:00:03.1]} 67...
f2 {[%clk 0:00:04.1]} 68. Nf6 {[%clk 0:00:03.6]} 68... Rc7+ {[%clk 0:00:04.2]}
69. Kb2 {[%clk 0:00:03.9]} 69... f1=Q {[%clk 0:00:04.8]} 70. Nd5 {[%clk
0:00:04.8]} 70... Rb7+ {[%clk 0:00:04]} 71. Kc3 {[%clk 0:00:04.9]} 71... Qc1+
{[%clk 0:00:04.2]} 72. Kd4 {[%clk 0:00:05.8]} 72... Qd2+ {[%clk 0:00:04.1]} 73.
Ke5 {[%clk 0:00:06.7]} 73... Rb5 {[%clk 0:00:04]} 74. Kf6 {[%clk 0:00:06.5]}
74... Qxd5 {[%clk 0:00:04.5]} 75. Kg6 {[%clk 0:00:07.4]} 75... g4 {[%clk
0:00:04.9]} 0-1

[Event "Early-Titled-Tuesday-Blitz-December-26-2023"]
[Site "Chess.com"]
[Date "2023.12.26"]
[Round "8"]
[White "severomorskij"]
[Black "wild3000"]
[Result "1-0"]
[WhiteElo "2870"]
[BlackElo "2414"]
[TimeControl "180+1"]
[EndTime "9:30:46 PST"]
[Termination "severomorskij won by resignation"]

1. d4 {[%clk 0:02:57.5]} 1... Nf6 {[%clk 0:02:59.6]} 2. c4 {[%clk 0:02:57]} 2...
e6 {[%clk 0:02:59.5]} 3. Nc3 {[%clk 0:02:57.3]} 3... d5 {[%clk 0:02:56.5]} 4.
Bg5 {[%clk 0:02:56.2]} 4... Be7 {[%clk 0:02:56.3]} 5. e3 {[%clk 0:02:56]} 5...
O-O {[%clk 0:02:56.2]} 6. Nf3 {[%clk 0:02:56.5]} 6... Nbd7 {[%clk 0:02:55.3]} 7.
Bd3 {[%clk 0:02:54.7]} 7... h6 {[%clk 0:02:55]} 8. Bf4 {[%clk 0:02:49.9]} 8...
a6 {[%clk 0:02:54.1]} 9. cxd5 {[%clk 0:02:44.9]} 9... Nxd5 {[%clk 0:02:51.4]}
10. Bg3 {[%clk 0:02:40]} 10... Nxc3 {[%clk 0:02:44.1]} 11. bxc3 {[%clk
0:02:37.8]} 11... Bd6 {[%clk 0:02:44.6]} 12. O-O {[%clk 0:02:30.7]} 12... Qe7
{[%clk 0:02:34.3]} 13. Ne5 {[%clk 0:02:19.1]} 13... Nxe5 {[%clk 0:02:24.5]} 14.
dxe5 {[%clk 0:02:20]} 14... Bc5 {[%clk 0:02:24.6]} 15. Qg4 {[%clk 0:02:15.1]}
15... Qg5 {[%clk 0:02:23.1]} 16. Qe4 {[%clk 0:02:10.8]} 16... g6 {[%clk
0:02:17]} 17. Bf4 {[%clk 0:01:44.4]} 17... Qh4 {[%clk 0:02:06.6]} 18. Rfd1
{[%clk 0:01:31.2]} 18... Kg7 {[%clk 0:01:48.3]} 19. g3 {[%clk 0:01:14]} 19...
Qe7 {[%clk 0:01:47.5]} 20. h4 {[%clk 0:01:06.1]} 20... h5 {[%clk 0:01:29.7]} 21.
Bg5 {[%clk 0:01:03.8]} 21... Qe8 {[%clk 0:01:28]} 22. Qf4 {[%clk 0:01:01.6]}
22... Be7 {[%clk 0:01:22.5]} 23. Bf6+ {[%clk 0:00:52.5]} 23... Bxf6 {[%clk
0:01:14.9]} 24. exf6+ {[%clk 0:00:52.3]} 24... Kh7 {[%clk 0:01:12.1]} 25. Qg5
{[%clk 0:00:51.7]} 25... Rh8 {[%clk 0:01:10.9]} 26. Qxh5+ {[%clk 0:00:39.3]}
26... Kg8 {[%clk 0:01:10.9]} 27. Qe5 {[%clk 0:00:38.3]} 27... Bd7 {[%clk
0:01:05.9]} 28. Be4 {[%clk 0:00:27.1]} 28... Qc8 {[%clk 0:00:50.2]} 29. Bf3
{[%clk 0:00:20.1]} 29... a5 {[%clk 0:00:36]} 30. Rd2 {[%clk 0:00:18.1]} 30...
Bc6 {[%clk 0:00:24.9]} 31. e4 {[%clk 0:00:18.4]} 31... Kh7 {[%clk 0:00:14.8]}
32. Rad1 {[%clk 0:00:17.1]} 32... a4 {[%clk 0:00:12.3]} 33. h5 {[%clk
0:00:16.9]} 33... Rg8 {[%clk 0:00:12.6]} 34. Kg2 {[%clk 0:00:16.4]} 34... g5
{[%clk 0:00:12]} 35. Qc5 {[%clk 0:00:14.5]} 35... Kh6 {[%clk 0:00:11.2]} 36. e5
{[%clk 0:00:13.6]} 36... Qf8 {[%clk 0:00:11.1]} 37. Qxf8+ {[%clk 0:00:12.3]}
37... Rgxf8 {[%clk 0:00:11.3]} 38. Bxc6 {[%clk 0:00:12.3]} 38... bxc6 {[%clk
0:00:12.2]} 39. Rd7 {[%clk 0:00:12.5]} 39... Ra5 {[%clk 0:00:12.8]} 40. f4
{[%clk 0:00:09.8]} 40... gxf4 {[%clk 0:00:12.8]} 41. gxf4 {[%clk 0:00:10.7]}
41... Kxh5 {[%clk 0:00:13.6]} 42. Kf3 {[%clk 0:00:10.5]} 42... Rc5 {[%clk
0:00:12.1]} 43. Rh1+ {[%clk 0:00:09.8]} 43... Kg6 {[%clk 0:00:12.3]} 44. Rg1+
{[%clk 0:00:10.7]} 44... Kh6 {[%clk 0:00:11.7]} 45. Rd2 {[%clk 0:00:09.4]} 45...
Rxc3+ {[%clk 0:00:11.6]} 46. Ke4 {[%clk 0:00:09.4]} 46... Rc4+ {[%clk
0:00:11.8]} 47. Ke3 {[%clk 0:00:09.3]} 47... Rc3+ {[%clk 0:00:08.2]} 48. Kd4
{[%clk 0:00:09.6]} 48... Rh3 {[%clk 0:00:09.1]} 49. Kc4 {[%clk 0:00:07.8]} 49...
Rh4 {[%clk 0:00:07.5]} 50. Kc5 {[%clk 0:00:06.6]} 50... Kh7 {[%clk 0:00:06.2]}
51. Kxc6 {[%clk 0:00:06.6]} 51... Rg8 {[%clk 0:00:06.5]} 52. Rxg8 {[%clk
0:00:05.8]} 52... Kxg8 {[%clk 0:00:07.4]} 53. Rd8+ {[%clk 0:00:05.4]} 53... Kh7
{[%clk 0:00:07.5]} 54. Rf8 {[%clk 0:00:05.2]} 54... Kg6 {[%clk 0:00:07.7]} 55.
Rg8+ {[%clk 0:00:05.6]} 55... Kf5 {[%clk 0:00:07.6]} 56. Rg7 {[%clk 0:00:06.5]}
56... Kxf4 {[%clk 0:00:07.1]} 57. Rxf7 {[%clk 0:00:06.9]} 57... Kxe5 {[%clk
0:00:08]} 58. Rf8 {[%clk 0:00:07.3]} 58... Rf4 {[%clk 0:00:08.2]} 59. f7 {[%clk
0:00:07.6]} 59... a3 {[%clk 0:00:08.3]} 60. Kxc7 {[%clk 0:00:07.7]} 60... Ke4
{[%clk 0:00:07.1]} 61. Kd6 {[%clk 0:00:07.6]} 61... e5 {[%clk 0:00:08]} 62. Ke6
{[%clk 0:00:07.9]} 62... Ke3 {[%clk 0:00:07.8]} 63. Ra8 {[%clk 0:00:07.8]} 63...
e4 {[%clk 0:00:08.1]} 64. f8=Q {[%clk 0:00:06.3]} 64... Rxf8 {[%clk 0:00:07.8]}
65. Rxf8 {[%clk 0:00:07.2]} 65... Kd2 {[%clk 0:00:07.5]} 66. Kd5 {[%clk
0:00:07.4]} 66... e3 {[%clk 0:00:07.7]} 67. Kc4 {[%clk 0:00:06.9]} 67... e2
{[%clk 0:00:08]} 68. Rd8+ {[%clk 0:00:07.8]} 68... Kc2 {[%clk 0:00:07.1]} 69.
Re8 {[%clk 0:00:08.3]} 69... Kd2 {[%clk 0:00:07.6]} 70. Kb3 {[%clk 0:00:08.5]}
70... e1=Q {[%clk 0:00:08]} 71. Rxe1 {[%clk 0:00:09]} 71... Kxe1 {[%clk
0:00:08.7]} 72. Kxa3 {[%clk 0:00:09.7]} 72... Ke2 {[%clk 0:00:09.6]} 73. Kb4
{[%clk 0:00:10.3]} 73... Ke3 {[%clk 0:00:09.7]} 74. a4 {[%clk 0:00:10]} 74...
Kd4 {[%clk 0:00:09.9]} 75. Kb5 {[%clk 0:00:10.3]} 75... Kd5 {[%clk 0:00:10]} 76.
a5 {[%clk 0:00:10.7]} 76... Kd6 {[%clk 0:00:10.2]} 77. Kb6 {[%clk 0:00:11.3]}
77... Kd7 {[%clk 0:00:11.1]} 78. Kb7 {[%clk 0:00:11.6]} 78... Kd6 {[%clk
0:00:11.2]} 79. a6 {[%clk 0:00:12]} 79... Kc5 {[%clk 0:00:10.7]} 80. a7 {[%clk
0:00:12.9]} 1-0